fUSD/lending_fUSD_20250510
["ID","MTS","AMOUNT","RATE_DAILY","PERIOD"]
[360525504,1746839445942,-400.0,0.00019897,2]
[360525505,1746839445951,-15.5794196,0.00019897,2]
[360525506,1746839445994,-384.4205804,0.00019897,2]
[360525507,1746839446004,-400.0,0.00019897,2]
[360525508,1746839446013,-400.0,0.00019897,2]
[360525509,1746839446023,-400.0,0.00019897,2]
[360525510,1746839446032,-400.0,0.00019897,2]
[360525511,1746839446043,-400.0,0.00019897,2]
[360525512,1746839446052,-400.0,0.00019897,2]
[360525513,1746839446061,-205.23665272,0.00019897,2]
[360525515,1746839467325,250.0,0.00017,2]
[360525516,1746839468377,300.0,0.00019,2]
[360525542,1746839560341,275.25,0.00016978,2]
[360525543,1746839560765,275.25,0.00019242,2]
[360525545,1746839849336,1738.97662972,0.0003,30]
[360525546,1746840266236,150.0,0.00018986,7]
[360525548,1746840422135,150.09617971,0.00029986,30]
[360525549,1746840425382,129491.37,0.00018917,2]
[360525553,1746840515013,150.0,0.0003,30]
[360525555,1746840536208,4000.0,0.0001895,2]
[360525562,1746840604113,196.43,0.000189,2]
[360525563,1746840605289,250.0,0.00018897,2]
[360525564,1746840617794,278.24,0.0003,31]
[360525565,1746840625081,190.23955875,0.0003,30]
[360525583,1746840632074,-303.33273231,0.000196,2]
[360525584,1746840632085,-135.52730925,0.00019624,2]
[360525585,1746840632160,-114.47269075,0.00019624,2]
[360525586,1746840632171,-442.5,0.00019647,2]
[360525587,1746840632182,-150.0,0.00019674,2]
[360525588,1746840632193,-1000.0,0.00019725,2]
[360525589,1746840632204,-150.0,0.00019774,2]
[360525590,1746840632215,-879.0,0.00019783,2]
[360525591,1746840632226,-3338.253,0.00019783,2]
[360525592,1746840632236,-4730.8970452,0.00019797,2]
[360525593,1746840632249,-270502.2646338,0.00019797,2]
[360525596,1746840632260,-150.0,0.00019797,2]
[360525598,1746840632271,-2548.55,0.000198,2]
[360525600,1746840632282,-150.8538441,0.00019804,2]
[360525602,1746840632292,-150.0,0.00019814,2]
[360525604,1746840632303,-150.0,0.0001983,2]
[360525606,1746840632313,-207.4,0.00019846,2]
[360525608,1746840632327,-150.0,0.00019853,2]
[360525610,1746840632337,-300.0,0.00019857,2]
[360525613,1746840632348,-1200.0,0.00019857,2]
[360525615,1746840632358,-300.0,0.00019857,2]
[360525617,1746840632368,-150.0,0.00019858,2]
[360525618,1746840632378,-150.0,0.00019863,2]
[360525619,1746840632388,-164.74005326,0.00019868,2]
[360525620,1746840632399,-1890.80771593,0.00019869,2]
[360525621,1746840632412,-3671.06418407,0.00019869,2]
[360525622,1746840632423,-166.98761517,0.0001987,2]
[360525623,1746840632435,-166.98761511,0.00019873,2]
[360525624,1746840632446,-166.98761511,0.00019877,2]
[360525625,1746840632457,-166.98761511,0.0001988,2]
[360525626,1746840632468,-166.98761511,0.00019883,2]
[360525627,1746840632478,-166.98761511,0.00019887,2]
[360525628,1746840632489,-238.89585707,0.00019888,2]
[360525629,1746840632501,-166.98761511,0.0001989,2]
[360525630,1746840632512,-150.0,0.00019891,2]
[360525631,1746840632523,-166.98761511,0.00019893,2]
[360525632,1746840632533,-1802.993,0.00019895,2]
[360525633,1746840632544,-1100.0,0.00019895,2]
[360525634,1746840632555,-212.38729043,0.00019896,2]
[360525635,1746840632569,-287.61270957,0.00019896,2]
[360525636,1746840632581,-400.0,0.00019896,2]
[360525637,1746840632591,-198.97434841,0.00019896,2]
[360525638,1746840632603,-127.313022,0.00019896,2]
[360525639,1746840632622,-272.686978,0.00019896,2]
[360525640,1746840632637,-400.0,0.00019896,2]
[360525641,1746840632649,-450.0,0.00019896,2]
[360525642,1746840632661,-400.0,0.00019896,2]
[360525643,1746840632672,-447.77326168,0.00019896,2]
[360525644,1746840632684,-21.90969793,0.00019896,2]
[360525650,1746840638270,-428.09030207,0.00019896,2]
[360525651,1746840638281,-154.12705526,0.00019896,2]
[360525652,1746840638291,-469.84,0.00019896,2]
[360525653,1746840638302,-202.6477267,0.00019896,2]
[360525654,1746840638311,-400.0,0.00019896,2]
[360525655,1746840638324,-328.08521597,0.00019896,2]
[360525656,1746840638337,-71.91478403,0.00019896,2]
[360525657,1746840638348,-450.0,0.00019896,2]
[360525658,1746840638357,-400.0,0.00019896,2]
[360525659,1746840638366,-400.0,0.00019896,2]
[360525660,1746840638376,-400.0,0.00019896,2]
[360525661,1746840638386,-400.0,0.00019896,2]
[360525663,1746840638395,-400.0,0.00019896,2]
[360525665,1746840638404,-400.0,0.00019896,2]
[360525667,1746840638413,-400.0,0.00019896,2]
[360525669,1746840638422,-277.54,0.00019896,2]
[360525671,1746840638431,-52.6452159,0.00019896,2]
[360525673,1746840638443,-397.3547841,0.00019896,2]
[360525675,1746840638452,-249.35578149,0.00019896,2]
[360525677,1746840638462,-84.73943416,0.00019896,2]
[360525720,1746840638937,167.92,0.00018988,2]
[360525724,1746840639986,-365.26056584,0.00019896,2]
[360525725,1746840639996,-450.0,0.00019896,2]
[360525726,1746840640006,-400.0,0.00019896,2]
[360525727,1746840640016,-450.0,0.00019896,2]
[360525728,1746840640025,-532.26,0.00019896,2]
[360525729,1746840640037,-450.0,0.00019896,2]
[360525730,1746840640047,-400.0,0.00019896,2]
[360525731,1746840640056,-510.62,0.00019896,2]
[360525732,1746840640066,-450.0,0.00019896,2]
[360525733,1746840640075,-400.0,0.00019896,2]
[360525734,1746840640084,-450.0,0.00019896,2]
[360525735,1746840640094,-450.0,0.00019896,2]
[360525736,1746840640103,-400.0,0.00019896,2]
[360525737,1746840640112,-400.0,0.00019896,2]
[360525738,1746840640122,-400.0,0.00019896,2]
[360525739,1746840640131,-484.32,0.00019896,2]
[360525740,1746840640140,-400.0,0.00019896,2]
[360525741,1746840640149,-450.0,0.00019896,2]
[360525742,1746840640158,-400.0,0.00019896,2]
[360525743,1746840640167,-400.0,0.00019896,2]
[360525744,1746840640177,-410.63783325,0.00019896,2]
[360525745,1746840640186,-167.96267066,0.00019896,2]
[360525746,1746840640195,-450.0,0.00019896,2]
[360525747,1746840640205,-400.0,0.00019896,2]
[360525748,1746840640215,-450.0,0.00019896,2]
[360525749,1746840640224,-494.72,0.00019896,2]
[360525750,1746840640233,-400.0,0.00019896,2]
[360525751,1746840640243,-400.0,0.00019896,2]
[360525752,1746840640252,-400.0,0.00019896,2]
[360525753,1746840640261,-465.68,0.00019896,2]
[360525754,1746840640271,-245.26116556,0.00019896,2]
[360525755,1746840640280,-450.0,0.00019896,2]
[360525756,1746840640290,-450.0,0.00019896,2]
[360525757,1746840640300,-166.98761511,0.00019897,2]
[360525758,1746840640310,-264.05184194,0.00019897,2]
[360525759,1746840640320,-200.0,0.00019897,2]
[360525760,1746840640332,-400.0,0.00019897,2]
[360525761,1746840640342,-285.98689984,0.00019897,2]
[360525762,1746840640351,-400.0,0.00019897,2]
[360525763,1746840640361,-400.0,0.00019897,2]
[360525764,1746840640371,-400.0,0.00019897,2]
[360525765,1746840640381,-450.0,0.00019897,2]
[360525766,1746840640390,-292.06268973,0.00019897,2]
[360525767,1746840640400,-450.0,0.00019897,2]
[360525768,1746840640409,-400.0,0.00019897,2]
[360525769,1746840640419,-476.48752221,0.00019897,2]
[360525770,1746840640428,-400.0,0.00019897,2]
[360525771,1746840640438,-400.0,0.00019897,2]
[360525772,1746840640447,-450.0,0.00019897,2]
[360525774,1746840640457,-483.72119793,0.00019897,2]
[360525775,1746840640466,-259.9899502,0.00019897,2]
[360525776,1746840640476,-400.0,0.00019897,2]
[360525777,1746840640485,-478.83469016,0.00019897,2]
[360525778,1746840640494,-450.0,0.00019897,2]
[360525779,1746840640504,-477.97055295,0.00019897,2]
[360525780,1746840640513,-450.0,0.00019897,2]
[360525781,1746840640523,-450.0,0.00019897,2]
[360525782,1746840640532,-400.0,0.00019897,2]
[360525783,1746840640542,-400.0,0.00019897,2]
[360525784,1746840640551,-470.0,0.00019897,2]
[360525785,1746840640561,-539.11235781,0.00019897,2]
[360525786,1746840640570,-450.0,0.00019897,2]
[360525787,1746840640582,-400.0,0.00019897,2]
[360525788,1746840640591,-482.34380656,0.00019897,2]
[360525789,1746840640601,-473.07297635,0.00019897,2]
[360525790,1746840640610,-472.51090077,0.00019897,2]
[360525791,1746840640620,-470.0,0.00019897,2]
[360525792,1746840640629,-450.0,0.00019897,2]
[360525793,1746840640639,-450.0,0.00019897,2]
[360525794,1746840640649,-450.0,0.00019897,2]
[360525795,1746840640659,-230.82149543,0.00019897,2]
[360525796,1746840640669,-477.82222382,0.00019897,2]
[360525797,1746840640678,-450.0,0.00019897,2]
[360525798,1746840640687,-450.0,0.00019897,2]
[360525799,1746840640697,-450.0,0.00019897,2]
[360525800,1746840640706,-450.0,0.00019897,2]
[360525801,1746840640715,-474.95877179,0.00019897,2]
[360525802,1746840640724,-165.8744417,0.00019898,2]
[360525803,1746840640733,-2398.0209346,0.00019899,2]
[360525804,1746840640743,-165.87444169,0.00019899,2]
[360525805,1746840640752,-11859.79524898,0.000199,2]
[360525806,1746840640761,-1265.96575008,0.000199,2]
[360525807,1746840640770,-525.93774806,0.000199,2]
[360525808,1746840640779,-164.74005326,0.000199,2]
[360525809,1746840640788,-166.98761511,0.000199,2]
[360525810,1746840640797,-741.72312184,0.000199,2]
[360525811,1746840640807,-502.51760354,0.000199,2]
[360525812,1746840640816,-165.87444169,0.000199,2]
[360525813,1746840640827,-756.14356252,0.000199,2]
[360525814,1746840641057,-37416.80444146,0.000199,2]
[360525815,1746840641067,-150.0,0.00019901,2]
[360525816,1746840641077,-179.66,0.00019908,2]
[360525817,1746840641087,-150.0,0.00019933,2]
[360525818,1746840641096,-155.41,0.00019959,2]
[360525819,1746840641105,-609.91,0.00019959,2]
[360525820,1746840641116,-155.41,0.0001996,2]
[360525821,1746840641126,-400.0,0.00019968,2]
[360525822,1746840641135,-400.0,0.00019968,2]
[360525823,1746840641144,-333.46700181,0.00019968,2]
[360525824,1746840641154,-178.77971708,0.00019968,2]
[360525825,1746840641163,-500.0,0.00019968,2]
[360525826,1746840641172,-500.0,0.00019968,2]
[360525827,1746840641181,-506.2451364,0.00019968,2]
[360525828,1746840641191,-400.0,0.00019968,2]
[360525829,1746840641200,-400.0,0.00019968,2]
[360525830,1746840641209,-400.0,0.00019968,2]
[360525831,1746840641218,-400.0,0.00019968,2]
[360525832,1746840641227,-236.44714301,0.00019968,2]
[360525833,1746840641236,-161.60929343,0.00019968,2]
[360525834,1746840641246,-312.47319671,0.00019968,2]
[360525835,1746840641255,-281.05893307,0.00019968,2]
[360525836,1746840641264,-400.0,0.00019968,2]
[360525837,1746840641273,-400.0,0.00019968,2]
[360525838,1746840641282,-214.56777445,0.00019968,2]
[360525839,1746840641291,-1471.253592,0.00019968,2]
[360525840,1746840641300,-400.0,0.00019968,2]
[360525841,1746840641309,-8846.385996,0.00019968,2]
[360525842,1746840641319,-500.0,0.00019968,2]
[360525843,1746840641329,-400.0,0.00019968,2]
[360525844,1746840641338,-309.93943283,0.00019968,2]
[360525845,1746840641347,-400.0,0.00019968,2]
[360525846,1746840641356,-400.0,0.00019968,2]
[360525847,1746840641366,-448.65,0.00019968,2]
[360525848,1746840641375,-552.67,0.00019968,2]
[360525849,1746840641384,-400.0,0.00019968,2]
[360525850,1746840641393,-400.0,0.00019968,2]
[360525851,1746840641402,-400.0,0.00019968,2]
[360525852,1746840641411,-400.0,0.00019968,2]
[360525853,1746840641420,-400.0,0.00019968,2]
[360525854,1746840641429,-400.0,0.00019968,2]
[360525855,1746840641439,-400.0,0.00019968,2]
[360525856,1746840641448,-400.0,0.00019968,2]
[360525857,1746840641457,-400.0,0.00019968,2]
[360525858,1746840641466,-400.0,0.00019968,2]
[360525859,1746840641475,-400.0,0.00019968,2]
[360525860,1746840641484,-200.0,0.00019968,2]
[360525861,1746840641493,-400.0,0.00019968,2]
[360525862,1746840641502,-400.0,0.00019968,2]
[360525863,1746840641511,-450.0,0.00019968,2]
[360525864,1746840641521,-450.0,0.00019968,2]
[360525865,1746840641530,-400.0,0.00019968,2]
[360525866,1746840641540,-518.03310144,0.00019968,2]
[360525867,1746840641549,-400.0,0.00019968,2]
[360525868,1746840641558,-400.0,0.00019968,2]
[360525869,1746840641567,-400.0,0.00019968,2]
[360525870,1746840641577,-500.0,0.00019968,2]
[360525871,1746840641587,-400.0,0.00019968,2]
[360525872,1746840641596,-400.0,0.00019968,2]
[360525873,1746840641605,-400.0,0.00019968,2]
[360525874,1746840641614,-400.0,0.00019968,2]
[360525875,1746840641624,-468.57,0.00019968,2]
[360525876,1746840641633,-400.0,0.00019968,2]
[360525877,1746840641643,-400.0,0.00019968,2]
[360525878,1746840641653,-497.86,0.00019968,2]
[360525879,1746840641662,-400.0,0.00019968,2]
[360525880,1746840641671,-1017.05,0.00019968,2]
[360525881,1746840641681,-400.0,0.00019968,2]
[360525882,1746840641691,-526.33945857,0.00019968,2]
[360525883,1746840641700,-400.0,0.00019968,2]
[360525884,1746840641710,-500.0,0.00019968,2]
[360525885,1746840641719,-400.0,0.00019968,2]
[360525886,1746840641728,-400.0,0.00019968,2]
[360525887,1746840641737,-400.0,0.00019968,2]
[360525888,1746840641748,-400.0,0.00019968,2]
[360525889,1746840641758,-400.0,0.00019968,2]
[360525890,1746840641767,-400.0,0.00019968,2]
[360525891,1746840641776,-401.55,0.00019968,2]
[360525892,1746840641785,-400.0,0.00019968,2]
[360525893,1746840641794,-400.0,0.00019968,2]
[360525894,1746840641803,-400.0,0.00019968,2]
[360525895,1746840641990,-450.0,0.00019968,2]
[360525896,1746840642000,-400.0,0.00019968,2]
[360525897,1746840642009,-400.0,0.00019968,2]
[360525898,1746840642019,-400.0,0.00019968,2]
[360525899,1746840642028,-400.0,0.00019968,2]
[360525900,1746840642039,-400.0,0.00019968,2]
[360525901,1746840642048,-400.0,0.00019968,2]
[360525902,1746840642058,-400.0,0.00019968,2]
[360525903,1746840642067,-400.0,0.00019968,2]
[360525904,1746840642077,-400.0,0.00019968,2]
[360525905,1746840642086,-435.01,0.00019968,2]
[360525906,1746840642095,-400.0,0.00019968,2]
[360525907,1746840642104,-400.0,0.00019968,2]
[360525908,1746840642114,-400.0,0.00019968,2]
[360525909,1746840642123,-400.0,0.00019968,2]
[360525910,1746840642132,-3934.97,0.00019968,2]
[360525911,1746840642142,-298.85559077,0.00019968,2]
[360525912,1746840642151,-400.0,0.00019968,2]
[360525913,1746840642160,-400.0,0.00019968,2]
[360525914,1746840642169,-400.0,0.00019968,2]
[360525915,1746840642178,-1649.51,0.00019968,2]
[360525916,1746840642187,-400.0,0.00019968,2]
[360525917,1746840642197,-400.0,0.00019968,2]
[360525918,1746840642206,-400.0,0.00019968,2]
[360525919,1746840642215,-416.8742383,0.00019968,2]
[360525920,1746840642224,-252.136242,0.00019968,2]
[360525921,1746840642233,-400.0,0.00019968,2]
[360525922,1746840642243,-400.0,0.00019968,2]
[360525923,1746840642253,-153.44222509,0.00019968,2]
[360525924,1746840642262,-400.0,0.00019968,2]
[360525925,1746840642271,-443.44,0.00019968,2]
[360525926,1746840642280,-564.29,0.00019968,2]
[360525927,1746840642290,-400.0,0.00019968,2]
[360525928,1746840642299,-537.11544342,0.00019968,2]
[360525929,1746840642308,-400.0,0.00019968,2]
[360525930,1746840642317,-400.0,0.00019968,2]
[360525931,1746840642327,-400.0,0.00019968,2]
[360525932,1746840642337,-400.0,0.00019969,2]
[360525933,1746840642347,-400.0,0.00019969,2]
[360525934,1746840642357,-400.0,0.00019969,2]
[360525935,1746840642367,-325.99,0.00019969,2]
[360525936,1746840642376,-313.75,0.00019969,2]
[360525937,1746840642385,-150.35,0.00019969,2]
[360525938,1746840642395,-400.0,0.00019969,2]
[360525939,1746840642404,-257.01,0.00019969,2]
[360525940,1746840642414,-470.0,0.00019969,2]
[360525941,1746840642424,-233.12,0.00019969,2]
[360525942,1746840642433,-400.0,0.00019969,2]
[360525943,1746840642442,-240.99,0.00019969,2]
[360525944,1746840642452,-400.0,0.00019969,2]
[360525945,1746840642461,-378.45,0.00019969,2]
[360525946,1746840642470,-288.21,0.00019969,2]
[360525947,1746840642480,-234.17,0.00019969,2]
[360525948,1746840642489,-363.2110351,0.00019969,2]
[360525949,1746840642498,-400.0,0.00019969,2]
[360525950,1746840642507,-400.0,0.00019969,2]
[360525951,1746840642517,-400.0,0.00019969,2]
[360525952,1746840642526,-400.0,0.00019969,2]
[360525953,1746840642535,-400.0,0.00019969,2]
[360525954,1746840642545,-400.0,0.00019969,2]
[360525955,1746840642554,-400.0,0.00019969,2]
[360525956,1746840642563,-400.0,0.00019969,2]
[360525957,1746840642572,-400.0,0.00019969,2]
[360525958,1746840642582,-400.0,0.00019969,2]
[360525959,1746840642591,-400.0,0.00019969,2]
[360525960,1746840642601,-400.0,0.00019969,2]
[360525961,1746840642610,-400.0,0.00019969,2]
[360525962,1746840642620,-400.0,0.00019969,2]
[360525963,1746840642630,-400.0,0.00019969,2]
[360525964,1746840642639,-400.0,0.00019969,2]
[360525965,1746840642649,-400.0,0.00019969,2]
[360525966,1746840642659,-400.0,0.00019969,2]
[360525967,1746840642669,-400.0,0.00019969,2]
[360525968,1746840642679,-400.0,0.00019969,2]
[360525969,1746840642688,-400.0,0.00019969,2]
[360525971,1746840642698,-400.0,0.00019969,2]
[360525973,1746840642708,-400.0,0.00019969,2]
[360525974,1746840642717,-400.0,0.00019969,2]
[360525975,1746840642727,-450.0,0.00019969,2]
[360525976,1746840642736,-400.0,0.00019969,2]
[360525977,1746840642746,-400.0,0.00019969,2]
[360525979,1746840642756,-400.0,0.00019969,2]
[360525981,1746840642766,-400.0,0.00019969,2]
[360525982,1746840642775,-513.56,0.00019969,2]
[360525984,1746840642786,-400.0,0.00019969,2]
[360525986,1746840642796,-400.0,0.00019969,2]
[360525987,1746840642806,-510.86,0.00019969,2]
[360525988,1746840642816,-400.0,0.00019969,2]
[360525989,1746840642826,-400.0,0.00019969,2]
[360525990,1746840642836,-400.0,0.00019969,2]
[360525991,1746840642846,-400.0,0.00019969,2]
[360525992,1746840642856,-400.0,0.00019969,2]
[360525993,1746840642866,-400.0,0.00019969,2]
[360525995,1746840642876,-400.0,0.00019969,2]
[360525997,1746840642887,-400.0,0.00019969,2]
[360525999,1746840642898,-400.0,0.00019969,2]
[360526001,1746840642909,-400.0,0.00019969,2]
[360526002,1746840642919,-400.0,0.00019969,2]
[360526003,1746840642929,-400.0,0.00019969,2]
[360526004,1746840642939,-400.0,0.00019969,2]
[360526005,1746840642949,-400.0,0.00019969,2]
[360526006,1746840642959,-400.0,0.00019969,2]
[360526007,1746840642969,-400.0,0.00019969,2]
[360526008,1746840642978,-400.0,0.00019969,2]
[360526010,1746840642988,-400.0,0.00019969,2]
[360526011,1746840642998,-485.07,0.00019969,2]
[360526012,1746840643007,-400.0,0.00019969,2]
[360526013,1746840643017,-450.0,0.00019969,2]
[360526014,1746840643027,-400.0,0.00019969,2]
[360526015,1746840643039,-400.0,0.00019969,2]
[360526016,1746840643050,-242.25783501,0.00019969,2]
[360526017,1746840643061,-400.0,0.00019969,2]
[360526018,1746840643072,-527.28,0.00019969,2]
[360526019,1746840643083,-400.0,0.00019969,2]
[360526020,1746840643093,-400.0,0.00019969,2]
[360526021,1746840643103,-400.0,0.00019969,2]
[360526022,1746840643114,-400.0,0.00019969,2]
[360526023,1746840643123,-400.0,0.00019969,2]
[360526024,1746840643132,-400.0,0.00019969,2]
[360526025,1746840643141,-400.0,0.00019969,2]
[360526026,1746840643150,-400.0,0.00019969,2]
[360526027,1746840643160,-400.0,0.00019969,2]
[360526028,1746840643169,-400.0,0.00019969,2]
[360526029,1746840643179,-400.0,0.00019969,2]
[360526030,1746840643188,-400.0,0.00019969,2]
[360526031,1746840643198,-400.0,0.00019969,2]
[360526032,1746840643207,-400.0,0.00019969,2]
[360526033,1746840643217,-400.0,0.00019969,2]
[360526034,1746840643227,-237.18890332,0.00019969,2]
[360526035,1746840643263,-212.81109668,0.00019969,2]
[360526036,1746840643272,-46.48985642,0.00019969,2]
[360526037,1746840643291,-324.13132404,0.00019969,2]
[360526038,1746840643303,-302.86881954,0.00019969,2]
[360526039,1746840643313,-48.23118046,0.00019969,2]
[360526060,1746840643671,-252.48373026,0.00019969,2]
[360526061,1746840643695,-99.28508928,0.00019969,2]
[360526062,1746840643704,-400.0,0.00019969,2]
[360526063,1746840643714,-400.0,0.00019969,2]
[360526064,1746840643723,-450.0,0.00019969,2]
[360526065,1746840643732,-508.03,0.00019969,2]
[360526066,1746840643742,-450.0,0.00019969,2]
[360526067,1746840643751,-769.9,0.00019969,2]
[360526068,1746840643761,-400.0,0.00019969,2]
[360526069,1746840643770,-450.0,0.00019969,2]
[360526070,1746840643779,-400.0,0.00019969,2]
[360526071,1746840643788,-1236.47699341,0.00019969,2]
[360526078,1746840648549,163.05101,0.0003,30]
[360526079,1746840667506,212.69049853,0.0003,30]
[360526080,1746840673789,3708.28,0.00018897,2]
[360526081,1746840676545,1000.0,0.00018995,2]
[360526082,1746840677771,500.0,0.000301,120]
[360526083,1746840678903,304.0,0.00017077,2]
[360526084,1746840679316,304.0,0.00019341,2]
[360526085,1746840741304,286.91,0.00018986,2]
[360526086,1746840790061,833.93581646,0.0002955,30]
[360526087,1746840791865,25000.0,0.00029,30]
[360526089,1746840857239,29033.46,0.0003,30]
[360526090,1746840879871,384.4,0.0003,30]
[360526091,1746840880573,512.37,0.00018951,2]
[360526092,1746840883255,178.9,0.00019495,2]
[360526093,1746840905321,1361.28,0.000189,2]
[360526095,1746840906981,1361.28,0.00019,2]
[360526096,1746840908654,1361.28,0.00019,2]
[360526097,1746840912495,1361.28,0.00019,2]
[360526098,1746840975951,7956.02,0.00018914,2]
[360526099,1746841159494,1842.2354622,0.0003,30]
[360526100,1746841185163,900.0,0.0003,30]
[360526101,1746841274062,73380.3171909,0.0003,30]
[360526102,1746841279588,250.0,0.00017,2]
[360526103,1746841280682,300.0,0.00019,2]
[360526104,1746841306013,167.03,0.00019473,2]
[360526105,1746841332393,150.0,0.00018986,7]
[360526106,1746841433097,915.6027879,0.0003,30]
[360526107,1746841444307,464.89135205,0.00019474,2]
[360526108,1746841501379,460.8555083,0.00029589,30]
[360526109,1746841608660,189.686869,0.0003,30]
[360526110,1746841653641,320.64,0.00018903,2]
[360526111,1746841660605,119632.73,0.00018902,2]
[360526116,1746841718428,150.0,0.000195,2]
[360526124,1746841723150,9098.52223995,0.0003,30]
[360526128,1746841748941,897.91599,0.0003,30]
[360526129,1746841762773,283.22,0.00018901,2]
[360526133,1746841773655,2350.0,0.0003,120]
[360526137,1746841800181,1149.19,0.00018901,2]
[360526138,1746841803593,58183.44562624,0.00030137,120]
[360526139,1746841809977,482.19064489,0.0003,30]
[360526140,1746841820801,1000.0,0.00018901,2]
[360526143,1746841832096,-634.82293,0.00019589,2]
[360526144,1746841832109,-207.4,0.00019688,2]
[360526145,1746841832120,-1131.43145409,0.00019695,2]
[360526146,1746841832131,-1131.43,0.00019697,2]
[360526147,1746841832143,-1200.0,0.00019698,2]
[360526148,1746841832155,-2262.86,0.00019699,2]
[360526149,1746841832166,-300.0,0.00019699,2]
[360526150,1746841832182,-443.76647256,0.000197,2]
[360526151,1746841832197,-3394.29,0.000197,2]
[360526152,1746841832210,-69.79397901,0.00019724,2]
[360526153,1746841832225,-80.20602099,0.00019724,2]
[360526154,1746841832238,-2569.04609995,0.000198,2]
[360526155,1746841832248,-200.0,0.00019834,2]
[360526156,1746841832259,-200.0,0.00019862,2]
[360526157,1746841832270,-150.0,0.00019865,2]
[360526158,1746841832280,-279.93,0.00019868,2]
[360526159,1746841832294,-760.23427962,0.00019868,2]
[360526160,1746841832307,-165.56226159,0.00019868,2]
[360526161,1746841832320,-367.4833,0.00019869,2]
[360526162,1746841832330,-1714.0712,0.00019869,2]
[360526163,1746841832341,-760.23427958,0.00019872,2]
[360526164,1746841832351,-760.23427958,0.00019875,2]
[360526165,1746841832361,-760.23427958,0.00019879,2]
[360526166,1746841832373,-760.23427958,0.00019882,2]
[360526167,1746841832384,-760.23427958,0.00019886,2]
[360526168,1746841832396,-261.72043893,0.00019887,2]
[360526169,1746841832408,-261.72043889,0.00019888,2]
[360526170,1746841832419,-760.23427958,0.00019889,2]
[360526171,1746841832430,-261.72043889,0.0001989,2]
[360526172,1746841832440,-879.0,0.0001989,2]
[360526173,1746841832450,-261.72043889,0.00019891,2]
[360526174,1746841832463,-261.72043889,0.00019893,2]
[360526175,1746841832473,-760.23427958,0.00019893,2]
[360526176,1746841832489,-261.72043889,0.00019894,2]
[360526177,1746841832503,-261.72043889,0.00019896,2]
[360526179,1746841832514,-760.23427958,0.00019896,2]
[360526180,1746841832525,-261.72043889,0.00019897,2]
[360526182,1746841832537,-1453.923,0.00019898,2]
[360526183,1746841832548,-261.72043889,0.00019899,2]
[360526184,1746841832559,-1729.09748781,0.00019899,2]
[360526185,1746841832576,-190.90763349,0.00019899,2]
[360526186,1746841832587,-235.40181779,0.000199,2]
[360526187,1746841832598,-760.23427958,0.000199,2]
[360526188,1746841832609,-261.72043889,0.000199,2]
[360526189,1746841832620,-250.25454436,0.000199,2]
[360526190,1746841832631,-210.74303315,0.000199,3]
[360526191,1746841832642,-150.0,0.00019925,2]
[360526192,1746841832652,-182.61222073,0.00019929,2]
[360526193,1746841832664,-5175.87148005,0.00019931,2]